bitfinex-derivatives/quotes_ETHF0:USTF0_20260128
["timestamp","ask_amount","ask_price","bid_price","bid_amount"]
[1769635275713,3.33141424,3020.6,3019.7,0.13914666]
[1769635275911,0.10848461,3020.7,3019.7,0.13914666]
[1769635276116,3.33152691,3020.6,3019.7,0.13914666]
[1769635276312,0.1081724,3020.6,3019.7,0.13914666]
[1769635277408,0.27127501,3020.8,3019.7,0.13914666]
[1769635277607,3.33181414,3020.7,3019.7,0.13914666]
[1769635277825,0.27127501,3020.8,3019.7,0.13914666]
[1769635278117,3.33181615,3020.7,3019.7,0.13914666]
[1769635278307,0.27127501,3020.8,3019.7,0.13914666]
[1769635278503,3.33186437,3020.7,3019.7,0.13914666]
[1769635278708,0.10511682,3020.7,3019.7,0.13914666]
[1769635278920,0.10511682,3020.6,3019.5,0.13914666]
[1769635280211,0.10511673,3020.5,3019.5,0.13914666]
[1769635285324,0.16577,3020.6,3019.5,0.13914666]
[1769635287819,0.28134918,3020.6,3019.5,0.13914666]
[1769635289830,0.12181702,3020.5,3019.5,0.13914666]
[1769635291031,0.12214342,3020.3,3019.1,0.14751589]
[1769635292739,3.45505486,3020.2,3019.1,0.14751589]
[1769635293032,0.12248655,3020.2,3019.1,0.14751589]
[1769635293437,0.12248647,3020.1,3019.1,0.14751589]
[1769635293632,0.12248647,3020.0,3019.1,0.14751589]
[1769635293835,0.12248647,3020.0,3018.8,0.15136817]
[1769635294134,0.12248647,3019.6,3018.5,0.14751589]
[1769635294337,0.12248647,3019.4,3018.5,0.14751589]
[1769635294543,2.65067471,3019.6,3018.5,0.14751589]
[1769635294739,3.33066461,3019.5,3018.5,0.14751589]
[1769635294935,3.97316809,3020.2,3019.0,0.14751589]
[1769635295130,0.12767471,3020.0,3019.0,0.15156751]
[1769635295337,0.12767471,3019.9,3019.0,0.15156751]
[1769635303950,0.12767471,3019.9,3019.0,0.00405162]
[1769635307246,0.12767471,3019.9,3019.0,0.15156751]
[1769635307947,0.16579,3020.1,3019.0,0.15156751]
[1769635308153,0.12660369,3020.5,3019.0,0.15156751]
[1769635308351,3.625,3020.1,3019.0,0.15156751]
[1769635308652,3.75160369,3020.3,3019.0,0.15156751]
[1769635308852,3.33727763,3020.2,3019.0,0.15156751]
[1769635309047,3.75160369,3020.3,3019.0,0.15156751]
[1769635309240,3.33727771,3020.2,3019.0,0.15156751]
[1769635309440,3.626,3020.4,3019.0,0.15156751]
[1769635309646,3.33755291,3020.3,3019.0,0.15156751]
[1769635309945,9.957,3020.6,3019.4,0.14751589]
[1769635310146,3.33786856,3020.5,3019.4,0.14751589]
[1769635310344,10.08235489,3020.6,3019.4,0.14751589]
[1769635310551,3.46356274,3020.5,3019.4,0.14751589]
[1769635310753,0.12535489,3020.5,3019.4,0.14751589]
[1769635311754,0.12535489,3020.5,3019.0,0.00405162]
[1769635311755,3.75635489,3020.5,3019.7,1.2021029]
[1769635313355,0.12535489,3020.5,3019.7,1.2021029]
[1769635313558,3.637,3020.6,3019.8,0.14751589]
[1769635313755,3.637,3020.7,3020.0,0.14751589]
[1769635317263,3.34317941,3020.6,3020.0,0.14751589]
[1769635317459,3.676,3020.7,3020.1,1.19040125]
[1769635317766,0.12536787,3021.0,3020.2,0.13581424]
[1769635318060,3.677,3021.1,3020.4,0.13581424]
[1769635318459,3.80236787,3021.1,3020.4,0.13581424]
[1769635320660,0.12658595,3021.0,3020.2,0.13581424]
[1769635320964,0.12658595,3020.6,3019.6,0.13581424]
[1769635321263,0.12658595,3020.4,3019.6,0.13581424]
[1769635321760,0.12658589,3020.3,3019.4,0.13581424]
[1769635323367,0.1264241,3020.6,3019.8,0.13581424]
[1769635323563,2.52,3020.5,3019.8,0.13581424]
[1769635324264,0.1264241,3020.6,3019.8,0.13581424]
[1769635326669,0.28869976,3020.9,3019.8,0.13581424]
[1769635326968,3.34059413,3020.8,3019.8,0.13581424]
[1769635327163,0.12294976,3020.8,3019.8,0.13581424]
[1769635329477,3.80994976,3020.8,3020.0,0.13581424]
[1769635330267,0.12294976,3020.8,3020.0,0.13581424]
[1769635331176,3.69,3020.9,3020.0,0.13581424]
[1769635332473,0.12535832,3021.3,3020.4,0.13581424]
[1769635332773,0.12535832,3021.3,3020.6,0.13581424]
[1769635333573,0.00400973,3021.3,3020.6,0.13581424]
[1769635336087,0.12687322,3021.3,3020.6,0.13581424]
[1769635336268,1.05458701,3021.1,3020.2,0.13581424]
[1769635336469,0.12286349,3021.0,3020.2,0.13581424]
[1769635336678,0.12283034,3020.6,3019.9,0.13581424]
[1769635338783,1.978,3020.8,3019.9,0.13581424]
[1769635338784,2.09415667,3020.8,3019.9,0.13581424]
[1769635344777,2.09415667,3020.8,3020.0,0.13581424]
[1769635347684,1.978,3020.8,3020.0,0.13581424]
[1769635350490,0.11490936,3020.9,3020.0,0.13581424]
[1769635352090,1.16949637,3020.9,3020.0,0.13581424]
[1769635352389,0.11523056,3020.8,3020.0,0.13581424]
[1769635353584,1.16982465,3021.0,3020.0,0.13581424]
[1769635353887,1.16982465,3021.2,3020.0,0.13581424]
[1769635354087,0.11523764,3021.2,3020.2,0.14072927]
[1769635354790,0.00400973,3021.3,3020.4,0.14072927]
[1769635360281,0.00400973,3021.3,3020.8,0.14072927]
[1769635360488,0.2,3021.6,3020.8,0.14072927]
[1769635361392,0.20268319,3021.6,3020.8,0.14072927]
[1769635363694,0.20268319,3021.6,3021.2,0.14072927]
[1769635363995,0.13759839,3022.2,3021.2,0.14072927]
[1769635364301,0.13759839,3021.7,3020.7,0.14072927]
[1769635364702,0.13759839,3021.9,3020.7,0.14072927]
[1769635364893,0.1410035,3021.9,3020.7,0.14441441]
[1769635365403,0.1410035,3021.9,3021.1,0.14072927]
[1769635365695,0.00340511,3021.9,3021.1,0.14072927]
[1769635366509,0.1410035,3021.9,3021.1,0.14072927]
[1769635367998,0.13759839,3021.7,3020.8,0.14072927]
[1769635370200,0.1410035,3021.9,3020.8,0.14072927]
[1769635372403,0.1410035,3021.9,3020.8,1.19531628]
[1769635372603,0.1410035,3021.9,3020.9,0.14072927]
[1769635381412,0.13958076,3021.6,3020.7,0.00368514]
[1769635382507,0.13958076,3021.4,3020.3,0.13967119]
[1769635383107,0.13958076,3021.4,3019.4,0.13967119]
[1769635383406,0.13958076,3021.4,3019.5,0.13967119]
[1769635383602,0.13958076,3021.4,3019.7,0.13967119]
[1769635386014,0.13958076,3021.2,3019.7,0.13967119]
[1769635387510,0.30528076,3021.8,3020.2,0.13967119]
[1769635387814,0.13958076,3021.7,3020.2,0.13967119]
[1769635388020,0.13958076,3021.5,3020.2,0.13967119]
[1769635388709,0.13958076,3021.4,3020.2,0.13967119]
[1769635389125,0.13958076,3021.3,3020.2,0.13967119]
[1769635389310,0.13958076,3021.1,3019.6,0.13967119]
[1769635391417,0.13958076,3021.1,3019.7,0.13967119]
[1769635397135,0.13958076,3021.1,3019.8,0.13967119]
[1769635402041,0.16573,3021.3,3019.8,0.13967119]
[1769635402042,0.30531076,3021.3,3019.8,0.13967119]
[1769635403134,0.13958076,3021.2,3019.8,0.13967119]
[1769635412448,0.13958076,3021.2,3019.9,0.13419904]
[1769635420350,0.13958076,3021.2,3020.0,0.13419904]
[1769635428249,0.13958076,3021.2,3019.9,5.95206459]
[1769635428448,0.13958076,3021.2,3019.8,0.30000904]
[1769635428853,0.13958076,3021.2,3019.9,0.13419904]
[1769635430963,0.13958076,3021.2,3020.0,0.13419904]
[1769635433665,0.13958076,3021.2,3020.0,1.18844055]
[1769635434560,0.13442948,3021.5,3020.3,0.13419904]
[1769635435262,0.13442948,3021.5,3020.2,1.05424151]
[1769635435463,0.1373402,3021.3,3020.2,1.05424151]
[1769635435666,0.1373402,3021.3,3020.1,0.14562277]
[1769635435862,0.1373402,3020.9,3019.8,0.14562277]
[1769635436458,0.1373402,3020.9,3019.8,1.19986428]
[1769635436658,0.1373402,3020.9,3019.9,0.14562277]
[1769635438362,0.1373402,3020.9,3020.0,1.19986428]
[1769635441863,0.1373402,3020.9,3019.8,1.19986428]
[1769635442472,0.1373402,3020.9,3019.9,0.14562277]
[1769635447069,0.16573,3021.3,3019.5,0.0037242]
[1769635447070,0.1373402,3020.7,3019.7,0.14562277]
[1769635449578,0.1373402,3020.5,3019.5,0.0037242]
[1769635449872,0.1373402,3020.5,3019.5,0.14934697]
[1769635450075,0.1373402,3020.5,3019.7,0.14562277]
[1769635450980,0.16576,3020.8,3019.7,0.14562277]
[1769635450981,5.42947634,3020.4,3019.7,0.14562277]
[1769635451167,3.30421142,3020.3,3019.7,0.14562277]
[1769635451369,3.30421142,3020.2,3019.7,0.14562277]
[1769635451568,2.12526492,3020.4,3019.7,0.14562277]
[1769635451764,3.30355887,3020.3,3019.7,0.14562277]
[1769635451977,3.30355887,3020.2,3019.7,0.14562277]
[1769635452168,0.1373402,3020.4,3019.7,0.14562277]
[1769635452370,3.30301056,3020.3,3019.7,0.14562277]
[1769635452574,3.30301056,3020.2,3019.7,0.14562277]
[1769635452875,0.1373402,3020.4,3019.7,0.14562277]
[1769635453074,3.30301887,3020.3,3019.7,0.14562277]
[1769635453266,3.30301887,3020.2,3019.7,0.14562277]
[1769635453468,0.1373402,3020.4,3019.7,0.14562277]
[1769635453676,3.30257465,3020.3,3019.7,0.14562277]
[1769635453879,3.30257465,3020.2,3019.7,0.14562277]
[1769635454175,0.1373402,3020.4,3019.6,1.05424151]
[1769635454380,3.43954178,3020.3,3019.6,1.05424151]
[1769635454580,3.30220158,3020.2,3019.5,0.14934697]
[1769635457686,0.1373402,3020.3,3019.5,0.14934697]
[1769635459085,3.46209094,3020.2,3019.5,0.14934697]
[1769635459292,3.46213617,3020.1,3019.5,0.14934697]
[1769635459482,0.1373402,3020.1,3019.5,0.14934697]
[1769635459682,3.46211887,3020.0,3019.2,1.05424151]
[1769635459982,0.1373402,3020.0,3019.2,1.05424151]
[1769635460487,0.1373402,3020.2,3019.4,1.05424151]
[1769635460782,3.32432167,3020.1,3019.4,1.05689055]
[1769635461094,0.1373402,3020.2,3019.4,1.05689055]
[1769635461391,3.46170208,3020.1,3019.6,1.05424151]
[1769635461579,0.1373402,3020.1,3019.6,1.05424151]
[1769635463182,0.1373402,3020.1,3019.6,1.19986428]
[1769635463979,0.1373402,3020.1,3019.6,1.05424151]
[1769635464380,3.32393632,3020.0,3019.6,1.05424151]
[1769635464680,0.1373402,3020.1,3019.6,1.05424151]
[1769635464876,0.13689503,3020.0,3019.6,1.05424151]
[1769635465188,0.13689503,3020.0,3019.4,0.00264904]
[1769635465681,0.13689503,3019.8,3018.7,0.13641114]
[1769635465887,0.13689503,3019.6,3018.3,0.13641114]
[1769635466083,0.13689503,3019.4,3018.6,1.19065265]
[1769635466580,0.13960292,3019.4,3018.6,1.19470702]
[1769635466883,0.13960292,3019.4,3018.6,1.05829588]
[1769635467689,0.14267198,3019.2,3018.6,0.00405437]
[1769635469880,0.14267198,3019.2,3018.4,1.05424151]
[1769635470783,0.14267198,3019.0,3018.0,1.05424151]
[1769635471873,0.14267198,3019.0,3018.0,1.05819203]
[1769635475783,0.14267198,3019.0,3017.0,3.316]
[1769635475784,0.14267198,3018.0,3016.4,0.14400958]
[1769635475975,0.14267198,3017.2,3016.4,0.14400958]
[1769635476287,0.14267198,3017.2,3016.4,1.19825109]
[1769635476484,0.14267198,3017.2,3016.5,0.14400958]
[1769635476789,0.14681868,3017.2,3016.5,0.14679205]
[1769635478093,0.14681868,3017.2,3016.5,0.00278247]
[1769635478280,0.14681868,3017.2,3016.6,1.945]
[1769635478685,0.14681868,3017.2,3016.6,0.67021634]
[1769635479290,0.14681868,3017.2,3016.5,1.945]
[1769635479589,0.14681868,3017.2,3016.5,0.00273819]
[1769635479791,0.14267198,3017.1,3016.5,0.00273819]
[1769635481192,0.14267198,3017.1,3016.5,0.00162744]
[1769635485794,0.14267198,3017.1,3016.6,1.946]
[1769635492999,0.0041467,3017.2,3016.7,1.05424151]
[1769635493190,0.30859198,3017.8,3016.9,1.05424151]
[1769635493592,0.30859198,3017.8,3016.6,2.09000958]
[1769635494490,0.31140646,3017.8,3016.6,2.09000958]
[1769635494900,0.14267198,3017.7,3016.6,2.09000958]
[1769635495101,0.14267198,3017.7,3016.7,0.13527265]
[1769635497197,0.14315767,3017.6,3016.5,0.13690009]
[1769635497397,0.14315767,3017.5,3016.6,1.946]
[1769635498301,3.02985277,3017.8,3016.6,1.946]
[1769635498302,0.14315767,3017.3,3016.6,1.946]
[1769635498997,0.14315767,3017.1,3016.1,0.13527265]
[1769635499202,3.30715569,3017.0,3016.2,1.946]
[1769635499399,0.14315767,3016.9,3016.2,1.946]
[1769635499992,0.14315767,3016.9,3016.2,1.95023265]
[1769635501198,2.27972608,3017.2,3016.2,2.0855053]
[1769635501398,0.14315767,3017.0,3016.3,0.13527265]
[1769635501601,3.31107205,3016.9,3016.2,1.95023265]
[1769635501802,0.14315767,3016.8,3016.3,1.946]
[1769635504005,0.14315767,3016.8,3016.2,1.95023265]
[1769635504202,3.31983098,3016.7,3016.2,1.95023265]
[1769635504402,1.97061841,3017.0,3016.3,0.13527265]
[1769635504602,5.29048118,3016.9,3016.3,0.13527265]
[1769635504798,3.31986277,3016.8,3016.3,0.13527265]
[1769635505005,3.31986277,3016.7,3016.3,0.13527265]
[1769635505203,3.32598552,3016.6,3016.3,0.13527265]
[1769635505405,1.97061841,3016.8,3016.3,0.13527265]
[1769635506908,1.97061841,3016.8,3016.3,2.08227265]
[1769635507205,1.97061841,3016.8,3016.4,0.13527265]
[1769635507707,29.8188708,3017.1,3016.4,0.13527265]
[1769635508206,3.97584945,3017.2,3016.4,0.13527265]
[1769635508207,29.8188708,3017.2,3016.4,0.13527265]
[1769635508404,29.8188708,3017.1,3016.4,0.13527265]
[1769635508608,29.96535595,3017.1,3016.4,0.13527265]
[1769635508911,29.8188708,3017.0,3016.4,0.13527265]
[1769635509413,29.8188708,3017.0,3016.3,1.947]
[1769635510111,29.8188708,3017.0,3016.3,1.95152566]
[1769635511213,29.96535595,3017.1,3016.3,1.95152566]
[1769635519631,3.40969329,3017.0,3016.3,1.95152566]
[1769635519837,3.26371208,3016.9,3016.3,1.95152566]
[1769635520129,0.14598121,3016.7,3016.2,0.00423265]
[1769635520433,0.14598121,3016.5,3016.2,0.00423265]
[1769635520828,0.14598121,3016.5,3016.2,1.95123265]
[1769635521733,0.14622447,3016.9,3016.2,1.95123265]
[1769635522033,3.4097021,3016.8,3016.2,1.95123265]
[1769635522225,3.4097021,3016.7,3016.2,1.95123265]
[1769635522428,3.4097021,3016.6,3016.2,1.95123265]
[1769635522633,0.14622447,3016.6,3016.2,1.95123265]
[1769635527536,3.26537452,3016.5,3016.2,1.95123265]
[1769635527735,0.14829367,3016.9,3016.2,1.95123265]
[1769635528035,3.41370978,3016.8,3016.2,1.95123265]
[1769635528234,3.26541573,3016.7,3016.2,1.95123265]
[1769635528435,3.26541573,3016.6,3016.2,1.95123265]
[1769635528630,0.14829405,3016.9,3016.2,1.95123265]
[1769635528830,3.26626947,3016.8,3016.2,1.95123265]
[1769635529030,3.26626947,3016.7,3016.2,1.95123265]
[1769635529336,3.26626947,3016.6,3016.2,1.95123265]
[1769635529535,29.8188708,3017.0,3016.2,1.95123265]
[1769635529735,33.08502122,3017.0,3016.2,1.95123265]
[1769635530137,3.26615042,3016.9,3016.2,1.95123265]
[1769635530332,0.14819512,3017.5,3016.4,1.05641988]
[1769635530636,3.97584945,3017.7,3016.4,1.05641988]
[1769635530937,0.1510096,3017.8,3016.4,1.05641988]
[1769635531334,0.00281448,3017.8,3016.8,1.05641988]
[1769635531535,0.00281448,3017.8,3017.0,0.11478954]
[1769635531736,0.00281448,3017.8,3017.2,0.11478954]
[1769635532037,0.00281448,3017.8,3017.1,1.947]
[1769635532038,0.14943126,3017.9,3017.1,2.06178954]
[1769635533241,0.15201064,3017.9,3017.1,2.06178954]
[1769635533432,0.15201064,3017.9,3016.9,0.11348553]
[1769635533634,0.15201064,3017.9,3017.0,5.266]
[1769635534138,0.15201064,3017.9,3016.9,0.11348553]
[1769635534327,0.15201064,3017.9,3017.0,5.266]
[1769635536736,0.15201064,3017.9,3017.0,5.37087114]
[1769635537542,0.15201064,3017.9,3017.1,0.10349331]
[1769635537741,0.15201064,3017.9,3017.2,1.946]
[1769635538740,0.15201064,3017.9,3017.1,0.10349331]
[1769635539044,0.15099909,3017.4,3016.2,3.425404]
[1769635539243,0.15099909,3017.4,3016.3,1.946]
[1769635540043,0.15099909,3017.4,3016.2,0.00423265]
[1769635540243,0.15109786,3017.0,3016.3,1.946]
[1769635541644,0.15028044,3017.2,3016.3,2.04558815]
[1769635541943,0.15028044,3017.5,3016.4,0.09958815]
[1769635542545,0.15028044,3017.5,3016.3,2.04558815]
[1769635542842,0.15028044,3017.5,3016.4,0.09827919]
[1769635544036,0.15062083,3017.8,3016.4,0.09827919]
[1769635544246,3.08865745,3017.7,3016.4,0.09827919]
[1769635544542,3.08865745,3017.6,3016.4,0.09827919]
[1769635544744,0.15062083,3017.8,3016.4,0.09827919]
[1769635544945,3.08887013,3017.7,3016.4,0.09827919]
[1769635545140,0.15062083,3017.8,3016.4,0.09827919]
[1769635549245,0.00257938,3017.9,3016.5,0.09085807]
[1769635549445,0.15261171,3017.9,3016.5,0.09085807]
[1769635550843,0.15261171,3017.9,3016.6,0.08826152]
[1769635552045,0.15261171,3017.9,3016.7,0.08843506]
[1769635553948,0.15261171,3017.9,3016.8,3.319]
[1769635554152,0.15261171,3017.9,3016.9,0.08594009]
[1769635554349,0.15261171,3017.9,3017.0,1.946]
[1769635556547,0.19117081,3018.3,3017.6,1.13587037]
[1769635556854,1.05633619,3018.9,3017.7,2.02553418]
[1769635556855,0.19117081,3018.7,3017.7,2.02553418]
[1769635557042,3.25915869,3018.6,3017.7,2.02553418]
[1769635557242,3.06798788,3018.5,3017.7,2.02553418]
[1769635557441,0.00267074,3018.5,3017.8,0.07953418]
[1769635557849,0.19117081,3018.6,3017.8,0.07953418]
[1769635558150,3.26000187,3018.5,3017.7,1.946]
[1769635558342,0.19117081,3018.5,3017.7,1.946]
[1769635558542,1.247507,3018.5,3017.7,1.946]
[1769635558753,0.19117081,3018.4,3017.7,1.946]
[1769635558955,0.19393484,3018.4,3017.7,1.946]
[1769635560152,0.19393484,3018.4,3017.5,0.07706675]
[1769635560452,0.19393484,3018.4,3017.6,1.946]
[1769635561249,0.19117081,3018.2,3017.7,1.946]
[1769635563252,0.19117081,3018.0,3017.2,0.07273361]
[1769635563552,0.19117081,3018.0,3017.3,1.946]
[1769635564541,0.19117081,3018.3,3017.3,2.01541074]
[1769635564858,0.19117081,3018.3,3017.4,1.946]
[1769635565353,0.19117081,3018.3,3017.5,0.06819359]
[1769635565749,0.19117081,3018.3,3016.9,0.16597]
[1769635565949,0.19117081,3018.3,3017.0,1.12746485]
[1769635566158,0.19117081,3018.3,3017.1,3.38912866]
[1769635566452,0.19117081,3018.3,3017.2,0.07112866]
[1769635567051,0.19117081,3018.1,3016.9,0.16597]
[1769635567245,0.19117081,3017.9,3017.0,5.264]
[1769635568367,0.19117081,3017.8,3016.7,0.07361752]
[1769635568657,0.19117081,3017.8,3016.8,1.946]
[1769635570855,1.05633619,3017.7,3016.7,0.07361752]
[1769635571059,0.19117081,3017.6,3016.8,1.946]
[1769635573260,0.19117081,3017.6,3016.8,2.0135611]
[1769635573452,0.19117081,3017.6,3016.8,3.06989729]
[1769635573648,0.19117081,3017.9,3017.1,0.06601301]
[1769635573960,0.19117081,3017.9,3017.0,1.05633619]
[1769635574159,0.19117081,3017.9,3016.9,0.06601301]
[1769635576053,0.19117081,3017.9,3016.8,1.05633619]
[1769635576261,0.19117081,3017.0,3016.5,1.946]
[1769635578857,0.19117081,3017.5,3016.5,1.946]
[1769635579060,0.19117081,3017.3,3016.5,1.946]
[1769635580958,0.19117081,3017.3,3016.2,0.00423265]
[1769635581465,0.19117081,3017.1,3016.3,1.946]
[1769635581660,0.19117081,3016.9,3016.3,1.946]
[1769635584068,0.19117081,3016.9,3016.2,0.00423265]
[1769635584362,0.19117081,3016.9,3016.0,1.946]
[1769635585259,0.19117081,3016.9,3016.0,1.94901141]
[1769635585766,0.19117081,3016.9,3016.0,0.00301141]
[1769635595864,0.1644841,3017.2,3016.0,0.0606076]
[1769635599663,0.1644841,3017.2,3016.2,1.05683567]
[1769635599867,0.1644841,3017.2,3016.2,1.10976641]
[1769635600274,0.1644841,3017.2,3016.4,1.05683567]
[1769635600571,0.1644841,3017.2,3016.4,1.10976641]
[1769635600768,0.1644841,3017.5,3016.6,1.10860409]
[1769635600971,3.25885862,3017.4,3016.6,1.10860409]
[1769635601179,0.1644841,3017.4,3016.3,0.05176842]
[1769635603378,0.1644841,3017.2,3016.3,0.05176842]
[1769635604883,0.1644841,3017.2,3016.3,1.947]
[1769635606583,0.1644841,3017.2,3016.3,1.99147292]
[1769635613889,0.1644841,3017.2,3016.4,0.0368361]
[1769635620294,0.1644841,3017.2,3016.3,1.947]
[1769635620709,0.1644841,3017.2,3016.4,1.947]
[1769635621906,0.15356641,3017.0,3016.4,1.947]
[1769635622311,0.15356641,3017.0,3016.0,0.00301141]
[1769635622604,0.15356641,3016.8,3016.0,1.95001141]
[1769635623808,0.15356641,3016.8,3016.1,0.0255065]
[1769635625508,0.15356641,3016.8,3016.0,1.95001141]
[1769635625909,0.15356641,3016.6,3016.0,1.95001141]
[1769635626108,0.15356641,3016.6,3016.1,1.947]
[1769635628315,2.13178768,3016.9,3016.1,1.96829037]
[1769635628613,3.12589698,3016.8,3016.1,1.96829037]
[1769635628811,3.12589698,3016.7,3016.1,1.96829037]
[1769635629114,0.15356641,3016.9,3016.1,1.96829037]
[1769635629304,3.12558135,3016.8,3016.1,1.96829037]
[1769635629504,3.12558135,3016.7,3016.1,1.96829037]
[1769635629713,0.15356641,3016.9,3016.1,1.96829037]
[1769635630012,3.12557033,3016.8,3016.1,1.96829037]
[1769635630212,0.15356641,3016.9,3016.1,1.96829037]
[1769635630413,3.12552165,3016.8,3016.1,1.96829037]
[1769635630713,0.15356641,3016.9,3016.1,1.96829037]
[1769635631013,3.12594195,3016.8,3016.1,1.96829037]
[1769635631216,2.13178768,3017.1,3016.2,0.01809899]
[1769635631418,3.12603676,3017.0,3016.2,0.01809899]
[1769635631613,0.15356641,3017.3,3016.4,0.00870953]
[1769635631814,2.13178768,3017.5,3016.4,0.00870953]
[1769635632009,3.28001878,3017.4,3016.4,0.00870953]
[1769635632309,3.28001878,3017.3,3016.4,0.00870953]
[1769635632512,0.15356641,3017.3,3016.4,0.00870953]
[1769635639521,0.15356641,3017.3,3016.2,0.00796974]
[1769635641623,0.15356641,3017.3,3016.3,0.00794398]
[1769635651029,0.15356641,3017.3,3016.3,3.32694398]
[1769635651328,0.15356641,3017.3,3016.4,0.00703273]
[1769635652628,0.15356641,3017.3,3016.4,0.16599]
[1769635652833,0.15356641,3017.3,3016.5,0.00690366]
[1769635653032,0.15356641,3017.3,3016.4,0.16599]
[1769635653933,0.15356641,3017.3,3016.5,1.946]
[1769635658935,0.15356641,3017.3,3016.4,0.17388081]
[1769635659136,0.15356641,3017.3,3016.5,1.946]
[1769635661141,0.15356641,3017.3,3016.5,1.9538265]
[1769635661434,0.15356641,3017.3,3016.6,0.0078265]
[1769635665732,1.97822127,3017.9,3016.6,0.0078265]
[1769635667736,0.1421832,3017.8,3016.6,0.0078265]
[1769635667938,0.1421832,3017.6,3016.6,0.0078265]
[1769635673344,0.1421832,3017.6,3016.7,0.14287659]
[1769635674836,0.14384979,3017.9,3016.7,0.14287659]
[1769635675845,0.14384979,3017.9,3016.8,3.319]
[1769635677045,0.14384979,3017.9,3016.9,1.946]
[1769635677536,1.97822127,3018.1,3016.9,1.946]
[1769635677537,0.14384979,3017.7,3016.9,1.946]
[1769635680847,0.14384979,3017.7,3017.0,1.946]
[1769635682042,0.14384979,3017.7,3016.5,4.97682198]
[1769635682238,0.14384979,3016.8,3016.1,4.97682198]
[1769635682547,0.14384979,3016.8,3016.2,1.946]
[1769635682842,0.14384979,3016.6,3016.3,1.79814137]
[1769635683036,0.14384979,3016.6,3016.0,0.00301141]
[1769635683236,1.05651242,3016.5,3016.0,0.00301141]
[1769635683443,1.05651242,3016.3,3015.6,0.14785863]
[1769635683640,1.05651242,3016.3,3015.7,1.946]
[1769635684437,1.05651242,3016.3,3015.7,1.94957551]
[1769635686253,0.00210561,3016.4,3015.7,1.94957551]
[1769635688351,1.05651242,3016.3,3015.7,0.00357551]
[1769635688551,1.05651242,3016.1,3015.7,0.00357551]
[1769635688752,0.00259392,3016.1,3015.7,0.14856378]
[1769635688944,0.16597,3016.8,3015.9,0.14856378]
[1769635689945,0.16909722,3016.8,3015.9,0.15274536]
[1769635690146,0.16909722,3016.8,3015.9,0.00418158]
[1769635690147,1.05651242,3016.5,3015.9,0.00418158]
[1769635690345,0.16909722,3016.8,3015.9,0.00418158]
[1769635690346,1.05651242,3016.3,3015.9,0.00418158]
[1769635690551,1.05651242,3016.5,3015.9,0.00418158]
[1769635690761,1.22560964,3016.8,3015.9,0.00418158]
[1769635692550,1.05651242,3016.6,3015.9,0.00418158]
[1769635693355,1.22560964,3016.8,3015.9,0.00418158]
[1769635694649,1.05651242,3016.4,3015.9,0.00418158]
[1769635694844,1.05651242,3016.4,3015.5,1.947]
[1769635695859,1.05651242,3016.4,3015.5,1.95002631]
[1769635697160,1.05651242,3016.4,3015.5,0.00302631]
[1769635701468,1.05651242,3016.4,3015.5,0.15893434]
[1769635707766,1.05651242,3016.0,3014.9,0.15538445]
[1769635708269,1.05651242,3016.2,3015.0,0.15538445]
[1769635708471,3.18786865,3016.1,3015.0,0.15538445]
[1769635708774,1.05651242,3016.2,3015.0,0.15962739]
[1769635708974,3.19455447,3016.1,3015.0,0.15962739]
[1769635709169,1.05651242,3016.2,3015.0,0.15962739]
[1769635709475,3.19588788,3016.1,3015.0,0.15962739]
[1769635709674,3.19588788,3016.0,3015.0,0.15962739]
[1769635709874,1.05651242,3016.2,3015.0,0.15962739]
[1769635710075,3.19542092,3016.1,3015.0,0.15962739]
[1769635710372,1.05651242,3016.2,3015.0,0.15962739]
[1769635710373,4.25193334,3016.0,3015.0,0.15962739]
[1769635710673,1.05651242,3016.0,3015.0,0.15962739]
[1769635711169,1.98596021,3016.2,3015.0,0.00424294]
[1769635711170,1.05651242,3015.8,3015.0,0.00424294]
[1769635711377,1.05651242,3015.6,3015.0,0.00424294]
[1769635712175,1.05651242,3015.8,3015.0,0.00424294]
[1769635712370,3.20080971,3015.7,3015.0,0.00424294]
[1769635712573,1.05651242,3015.8,3015.0,0.00424294]
[1769635712770,3.20104382,3015.7,3015.0,0.00424294]
[1769635712973,1.05651242,3015.8,3015.0,0.00424294]
[1769635713277,3.20136226,3015.7,3015.0,0.00424294]
[1769635713478,1.05651242,3015.8,3015.0,0.00424294]
[1769635713676,3.20168003,3015.7,3015.0,0.00424294]
[1769635713876,1.05651242,3015.8,3015.0,0.00424294]
[1769635714079,3.20167004,3015.7,3014.8,0.15464803]
[1769635714378,1.98596021,3015.9,3014.8,0.15464803]
[1769635714678,5.18696756,3015.9,3014.8,0.15464803]
[1769635715075,5.18696756,3015.9,3014.8,0.15761072]
[1769635715373,3.20100735,3015.8,3014.8,0.15761072]
[1769635715577,3.20100735,3015.7,3014.8,0.15761072]
[1769635715777,1.05651242,3015.8,3014.8,0.15761072]
[1769635715977,3.20051263,3015.7,3014.8,0.15761072]
[1769635716274,1.05651242,3015.6,3014.8,0.00296269]
[1769635716471,1.05651242,3015.4,3014.4,0.1546026]
[1769635716675,1.05651242,3015.4,3014.4,2.1016026]
[1769635716880,1.05651242,3015.2,3014.4,0.1546026]
[1769635717576,1.05651242,3015.2,3014.4,0.15786938]
[1769635718378,1.05651242,3015.4,3014.4,0.15786938]
[1769635719373,1.05651242,3015.2,3014.2,0.15538174]
[1769635720179,1.98646076,3015.5,3014.5,0.1571149]
[1769635720370,3.19717287,3015.4,3014.5,0.16054214]
[1769635720570,1.98646076,3015.6,3014.5,0.16054214]
[1769635720873,3.19716465,3015.5,3014.5,0.16054214]
[1769635721071,3.19716465,3015.4,3014.5,0.16054214]
[1769635721274,1.98646076,3015.7,3014.5,0.16054214]
[1769635721476,3.19661684,3015.6,3014.5,0.16054214]
[1769635721682,3.19661684,3015.5,3014.5,0.16054214]
[1769635725680,3.19661684,3015.5,3014.7,0.15341613]
[1769635725882,1.98646076,3015.8,3014.7,0.15341613]
[1769635726178,3.19485404,3015.7,3014.7,0.15341613]
[1769635726376,3.19485404,3015.6,3015.1,0.15341613]
[1769635726578,1.98646076,3016.1,3015.3,0.15341613]
[1769635726778,3.19501541,3016.0,3015.3,0.15341613]
[1769635727087,3.19501541,3015.9,3015.3,0.15341613]
[1769635727285,1.98646076,3016.1,3015.3,0.15341613]
[1769635727583,3.19534194,3016.0,3015.3,0.15341613]
[1769635727787,3.19534194,3015.9,3015.3,0.15341613]
[1769635728084,1.98646076,3016.2,3015.3,0.15341613]
[1769635728384,5.18170841,3016.1,3015.3,0.15341613]
[1769635728585,3.19524765,3016.0,3015.3,0.15341613]
[1769635729384,4.25176007,3016.0,3014.9,0.15294166]
[1769635729587,3.19524765,3015.9,3014.9,0.15294166]
[1769635729787,1.98646076,3016.1,3014.9,0.15294166]
[1769635730084,3.19609288,3016.0,3014.9,0.15294166]
[1769635730282,3.19609288,3015.9,3014.9,0.15294166]
[1769635730485,1.98646076,3016.1,3015.1,0.15278059]
[1769635730678,3.19653893,3016.0,3015.1,0.15278059]